fUSD/lending_fUSD_20240814
["ID","MTS","AMOUNT","RATE_DAILY","PERIOD"]
[334942588,1723663856898,-500.0,0.00014246,2]
[334942589,1723663856907,-500.0,0.00014246,2]
[334942590,1723663856917,-500.0,0.00014246,2]
[334942591,1723663856926,-811.57,0.00014246,2]
[334942592,1723663856936,-500.0,0.00014246,2]
[334942593,1723663856946,-267.53463085,0.00014246,2]
[334942594,1723663856956,-500.0,0.00014246,2]
[334942595,1723663856965,-531.16,0.00014246,2]
[334942596,1723663856975,-644.67,0.00014246,2]
[334942597,1723663856984,-501.04745,0.00014246,2]
[334942598,1723663856994,-500.0,0.00014246,2]
[334942599,1723663857004,-660.5,0.00014246,2]
[334942600,1723663857013,-4047.03,0.00014246,2]
[334942601,1723663857023,-500.0,0.00014246,2]
[334942602,1723663857034,-498.93,0.00014246,2]
[334942603,1723663857044,-500.0,0.00014246,2]
[334942604,1723663857054,-500.0,0.00014246,2]
[334942605,1723663857066,-1193.38,0.00014246,2]
[334942606,1723663857075,-3718.96,0.0001452,2]
[334942607,1723663857086,-297.69,0.0001452,2]
[334942608,1723663857096,-624.49,0.0001452,2]
[334942609,1723663857107,-500.0,0.0001452,2]
[334942610,1723663857116,-150.0,0.0001452,2]
[334942611,1723663857126,-500.0,0.0001452,2]
[334942612,1723663857135,-500.0,0.0001452,2]
[334942613,1723663857145,-500.0,0.0001452,2]
[334942614,1723663857155,-500.0,0.0001452,2]
[334942615,1723663857166,-500.0,0.0001452,2]
[334942616,1723663857175,-500.0,0.0001452,2]
[334942617,1723663857185,-500.0,0.0001452,2]
[334942618,1723663857195,-500.0,0.0001452,2]
[334942619,1723663857205,-500.0,0.0001452,2]
[334942620,1723663857214,-500.0,0.0001452,2]
[334942621,1723663857224,-500.0,0.0001452,2]
[334942622,1723663857234,-3747.06,0.0001452,2]
[334942623,1723663857243,-1508.3,0.0001452,2]
[334942624,1723663857253,-1473.45,0.0001452,2]
[334942625,1723663857262,-649.37915171,0.0001452,2]
[334942626,1723663857272,-500.0,0.0001452,2]
[334942627,1723663857281,-418.5,0.0001452,2]
[334942628,1723663857291,-500.0,0.0001452,2]
[334942629,1723663857300,-500.0,0.0001452,2]
[334942630,1723663857309,-500.0,0.0001452,2]
[334942631,1723663857319,-2295.24,0.0001452,2]
[334942632,1723663857328,-500.0,0.0001452,2]
[334942633,1723663857338,-757.01,0.0001452,2]
[334942634,1723663857347,-1680.08,0.0001452,2]
[334942635,1723663857357,-685.4,0.0001452,2]
[334942636,1723663857366,-500.0,0.0001452,2]
[334942637,1723663857377,-150.29797293,0.0001452,2]
[334942638,1723663857386,-500.0,0.0001452,2]
[334942639,1723663857396,-500.0,0.0001452,2]
[334942640,1723663857405,-522.58242121,0.0001452,2]
[334942641,1723663857414,-500.0,0.0001452,2]
[334942642,1723663857423,-811.57,0.0001452,2]
[334942643,1723663857433,-500.0,0.0001452,2]
[334942644,1723663857442,-500.0,0.0001452,2]
[334942645,1723663857451,-660.5,0.0001452,2]
[334942646,1723663857460,-4047.03,0.0001452,2]
[334942647,1723663857469,-500.0,0.0001452,2]
[334942648,1723663857479,-500.0,0.0001452,2]
[334942649,1723663857488,-500.0,0.0001452,2]
[334942650,1723663857498,-1193.38,0.0001452,2]
[334942651,1723663857507,-165.14,0.00014586,2]
[334942652,1723663857516,-3718.96,0.00014794,2]
[334942653,1723663857532,-500.0,0.00014794,2]
[334942654,1723663857541,-150.0,0.00014794,2]
[334942655,1723663857551,-500.0,0.00014794,2]
[334942656,1723663857561,-500.0,0.00014794,2]
[334942657,1723663857571,-500.0,0.00014794,2]
[334942658,1723663857582,-500.0,0.00014794,2]
[334942659,1723663857592,-500.0,0.00014794,2]
[334942660,1723663857602,-500.0,0.00014794,2]
[334942661,1723663857613,-350.82,0.00014794,2]
[334942662,1723663857623,-500.0,0.00014794,2]
[334942663,1723663857634,-500.0,0.00014794,2]
[334942664,1723663857643,-500.0,0.00014794,2]
[334942665,1723663857652,-500.0,0.00014794,2]
[334942666,1723663857663,-3747.06,0.00014794,2]
[334942667,1723663857673,-1508.3,0.00014794,2]
[334942668,1723663857682,-1473.45,0.00014794,2]
[334942669,1723663857691,-500.0,0.00014794,2]
[334942670,1723663857700,-500.0,0.00014794,2]
[334942671,1723663857710,-500.0,0.00014794,2]
[334942672,1723663857719,-500.0,0.00014794,2]
[334942673,1723663857728,-2295.24,0.00014794,2]
[334942674,1723663857737,-500.0,0.00014794,2]
[334942675,1723663857746,-757.01,0.00014794,2]
[334942676,1723663857755,-1680.08,0.00014794,2]
[334942677,1723663857765,-685.4,0.00014794,2]
[334942678,1723663857774,-500.0,0.00014794,2]
[334942679,1723663857783,-383.1,0.00014794,2]
[334942680,1723663857792,-500.0,0.00014794,2]
[334942681,1723663857801,-500.0,0.00014794,2]
[334942682,1723663857810,-811.57,0.00014794,2]
[334942683,1723663857818,-500.0,0.00014794,2]
[334942684,1723663857830,-500.0,0.00014794,2]
[334942685,1723663857839,-660.5,0.00014794,2]
[334942686,1723663857848,-4047.03,0.00014794,2]
[334942687,1723663857857,-509.34,0.00014794,2]
[334942688,1723663857969,-500.0,0.00014794,2]
[334942689,1723663857979,-500.0,0.00014794,2]
[334942690,1723663857988,-1193.38,0.00014794,2]
[334942691,1723663857997,-313.33566867,0.00014803,2]
[334942692,1723663858007,-1000.0,0.00014829,2]
[334942693,1723663858016,-189.72,0.00014858,2]
[334942694,1723663858025,-169.13,0.00014866,2]
[334942695,1723663858034,-177.06,0.00014983,2]
[334942696,1723663858043,-495.0,0.00015,2]
[334942697,1723663858052,-676.50109187,0.00015,2]
[334942698,1723663858061,-442.06164752,0.00015,2]
[334942699,1723663858071,-400.0,0.00015042,2]
[334942700,1723663858079,-3718.96,0.00015068,2]
[334942701,1723663858088,-500.0,0.00015068,2]
[334942702,1723663858098,-150.0,0.00015068,2]
[334942703,1723663858107,-450.98,0.00015068,2]
[334942704,1723663858116,-500.0,0.00015068,2]
[334942705,1723663858126,-500.0,0.00015068,2]
[334942706,1723663858135,-301.44,0.00015068,2]
[334942707,1723663858144,-500.0,0.00015068,2]
[334942708,1723663858153,-500.0,0.00015068,2]
[334942709,1723663858162,-500.0,0.00015068,2]
[334942710,1723663858171,-500.0,0.00015068,2]
[334942711,1723663858180,-500.0,0.00015068,2]
[334942712,1723663858189,-3747.06,0.00015068,2]
[334942713,1723663858198,-1508.3,0.00015068,2]
[334942714,1723663858207,-1473.45,0.00015068,2]
[334942715,1723663858216,-500.0,0.00015068,2]
[334942716,1723663858225,-500.0,0.00015068,2]
[334942717,1723663858234,-500.0,0.00015068,2]
[334942718,1723663858243,-500.0,0.00015068,2]
[334942719,1723663858253,-2295.24,0.00015068,2]
[334942720,1723663858263,-308.1284403,0.00015068,2]
[334942721,1723663858273,-757.01,0.00015068,2]
[334942722,1723663858283,-1680.08,0.00015068,2]
[334942723,1723663858293,-685.4,0.00015068,2]
[334942724,1723663858303,-500.0,0.00015068,2]
[334942725,1723663858312,-569.67879895,0.00015068,2]
[334942726,1723663858321,-500.0,0.00015068,2]
[334942727,1723663858330,-811.57,0.00015068,2]
[334942728,1723663858338,-500.0,0.00015068,2]
[334942729,1723663858348,-500.0,0.00015068,2]
[334942730,1723663858357,-660.5,0.00015068,2]
[334942731,1723663858366,-4047.03,0.00015068,2]
[334942732,1723663858376,-158.06,0.00015068,2]
[334942733,1723663858385,-500.0,0.00015068,2]
[334942734,1723663858394,-1193.38,0.00015068,2]
[334942735,1723663858403,-500.0,0.000151,2]
[334942736,1723663858412,-3718.96,0.00015342,2]
[334942737,1723663858421,-500.0,0.00015342,2]
[334942738,1723663858431,-209.48,0.00015342,2]
[334942739,1723663858440,-326.8,0.00015342,2]
[334942740,1723663858449,-520.62,0.00015342,2]
[334942741,1723663858458,-500.0,0.00015342,2]
[334942742,1723663858467,-500.0,0.00015342,2]
[334942743,1723663858476,-500.0,0.00015342,2]
[334942744,1723663858485,-500.0,0.00015342,2]
[334942745,1723663858495,-3747.06,0.00015342,2]
[334942746,1723663858505,-1508.3,0.00015342,2]
[334942747,1723663858513,-1473.45,0.00015342,2]
[334942748,1723663858524,-500.0,0.00015342,2]
[334942749,1723663858535,-500.0,0.00015342,2]
[334942750,1723663858544,-500.0,0.00015342,2]
[334942751,1723663858553,-500.0,0.00015342,2]
[334942752,1723663858562,-2295.24,0.00015342,2]
[334942753,1723663858573,-757.01,0.00015342,2]
[334942754,1723663858581,-1680.08,0.00015342,2]
[334942755,1723663858590,-685.4,0.00015342,2]
[334942756,1723663858599,-500.0,0.00015342,2]
[334942757,1723663858611,-500.0,0.00015342,2]
[334942758,1723663858621,-811.57,0.00015342,2]
[334942759,1723663858631,-500.0,0.00015342,2]
[334942760,1723663858640,-500.0,0.00015342,2]
[334942761,1723663858649,-660.5,0.00015342,2]
[334942762,1723663858658,-4047.03,0.00015342,2]
[334942763,1723663858668,-500.0,0.00015342,2]
[334942764,1723663858679,-1193.38,0.00015342,2]
[334942765,1723663858689,-179.44,0.00015352,2]
[334942766,1723663858699,-150.0,0.000154,2]
[334942767,1723663858710,-166.8038496,0.000154,2]
[334942768,1723663858719,-7707.56018791,0.00015433,2]
[334942769,1723663858728,-500.0,0.00015616,2]
[334942770,1723663858737,-500.0,0.00015616,2]
[334942771,1723663858746,-500.0,0.00015616,2]
[334942772,1723663858754,-3718.96,0.00015616,2]
[334942773,1723663858766,-500.0,0.00015616,2]
[334942774,1723663858777,-500.0,0.00015616,2]
[334942775,1723663858787,-500.0,0.00015616,2]
[334942776,1723663858797,-500.0,0.00015616,2]
[334942777,1723663858809,-500.0,0.00015616,2]
[334942778,1723663858819,-3747.06,0.00015616,2]
[334942779,1723663858830,-1508.3,0.00015616,2]
[334942780,1723663858840,-1473.45,0.00015616,2]
[334942781,1723663858850,-500.0,0.00015616,2]
[334942782,1723663858861,-500.0,0.00015616,2]
[334942783,1723663858871,-500.0,0.00015616,2]
[334942784,1723663858879,-500.0,0.00015616,2]
[334942785,1723663858888,-2295.24,0.00015616,2]
[334942786,1723663858898,-757.01,0.00015616,2]
[334942787,1723663858907,-1680.08,0.00015616,2]
[334942788,1723663858916,-685.4,0.00015616,2]
[334942789,1723663858925,-500.0,0.00015616,2]
[334942790,1723663858935,-500.0,0.00015616,2]
[334942791,1723663858944,-811.57,0.00015616,2]
[334942792,1723663858953,-500.0,0.00015616,2]
[334942793,1723663858962,-500.0,0.00015616,2]
[334942794,1723663858971,-660.5,0.00015616,2]
[334942795,1723663858981,-4047.03,0.00015616,2]
[334942796,1723663858991,-500.0,0.00015616,2]
[334942797,1723663859000,-1193.38,0.00015616,2]
[334942798,1723663859010,-1152.0,0.00015639,2]
[334942799,1723663859019,-500.0,0.0001589,2]
[334942800,1723663859028,-500.0,0.0001589,2]
[334942801,1723663859037,-3718.96,0.0001589,2]
[334942802,1723663859047,-500.0,0.0001589,2]
[334942803,1723663859057,-500.0,0.0001589,2]
[334942804,1723663859067,-500.0,0.0001589,2]
[334942805,1723663859078,-569.14,0.0001589,2]
[334942806,1723663859087,-574.0,0.0001589,2]
[334942807,1723663859097,-3747.06,0.0001589,2]
[334942808,1723663859109,-1508.3,0.0001589,2]
[334942809,1723663859119,-1473.45,0.0001589,2]
[334942810,1723663859130,-500.0,0.0001589,2]
[334942811,1723663859139,-500.0,0.0001589,2]
[334942812,1723663859148,-498.93,0.0001589,2]
[334942813,1723663859159,-235.80102645,0.0001589,2]
[334942814,1723663859171,-2295.24,0.0001589,2]
[334942815,1723663859182,-757.01,0.0001589,2]
[334942816,1723663859192,-1680.08,0.0001589,2]
[334942817,1723663859202,-685.4,0.0001589,2]
[334942818,1723663859213,-500.0,0.0001589,2]
[334942819,1723663859222,-500.0,0.0001589,2]
[334942820,1723663859231,-811.57,0.0001589,2]
[334942821,1723663859241,-500.0,0.0001589,2]
[334942822,1723663859250,-500.0,0.0001589,2]
[334942823,1723663859259,-660.5,0.0001589,2]
[334942824,1723663859268,-4047.03,0.0001589,2]
[334942825,1723663859277,-500.0,0.0001589,2]
[334942826,1723663859287,-1193.38,0.0001589,2]
[334942827,1723663859296,-1000.0,0.00016,5]
[334942828,1723663859305,-700.0,0.00016,2]
[334942829,1723663859315,-8500.0,0.00016129,2]
[334942830,1723663859324,-8500.0,0.00016138,2]
[334942831,1723663859334,-8500.0,0.00016146,2]
[334942832,1723663859343,-8500.0,0.00016155,2]
[334942833,1723663859353,-297.18168141,0.00016164,2]
[334942834,1723663859362,-297.18168141,0.00016164,2]
[334942835,1723663859372,-3718.96,0.00016164,2]
[334942836,1723663859382,-8500.0,0.00016164,2]
[334942837,1723663859392,-500.0,0.00016164,2]
[334942838,1723663859401,-500.0,0.00016164,2]
[334942839,1723663859411,-500.0,0.00016164,2]
[334942840,1723663859420,-3747.06,0.00016164,2]
[334942841,1723663859430,-1508.3,0.00016164,2]
[334942842,1723663859439,-1473.45,0.00016164,2]
[334942843,1723663859448,-500.0,0.00016164,2]
[334942844,1723663859458,-500.0,0.00016164,2]
[334942845,1723663859467,-2295.24,0.00016164,2]
[334942846,1723663859476,-757.01,0.00016164,2]
[334942847,1723663859486,-1680.08,0.00016164,2]
[334942848,1723663859496,-685.4,0.00016164,2]
[334942849,1723663859505,-500.0,0.00016164,2]
[334942850,1723663859515,-242.02397538,0.00016164,2]
[334942851,1723663859525,-811.57,0.00016164,2]
[334942852,1723663859536,-500.0,0.00016164,2]
[334942853,1723663859545,-500.0,0.00016164,2]
[334942854,1723663859554,-660.5,0.00016164,2]
[334942855,1723663859563,-4047.03,0.00016164,2]
[334942856,1723663859573,-500.0,0.00016164,2]
[334942857,1723663859583,-1193.38,0.00016164,2]
[334942858,1723663859592,-36643.11,0.000162,2]
[334942859,1723663859602,-3718.96,0.00016438,2]
[334942860,1723663859611,-500.0,0.00016438,2]
[334942861,1723663859620,-500.0,0.00016438,2]
[334942862,1723663859631,-500.0,0.00016438,2]
[334942863,1723663859640,-3747.06,0.00016438,2]
[334942864,1723663859649,-1508.3,0.00016438,2]
[334942865,1723663859658,-1473.45,0.00016438,2]
[334942866,1723663859667,-500.0,0.00016438,2]
[334942867,1723663859676,-500.0,0.00016438,2]
[334942868,1723663859686,-2295.24,0.00016438,2]
[334942869,1723663859695,-757.01,0.00016438,2]
[334942870,1723663859704,-1680.08,0.00016438,2]
[334942871,1723663859714,-685.4,0.00016438,2]
[334942872,1723663859723,-500.0,0.00016438,2]
[334942873,1723663859732,-811.57,0.00016438,2]
[334942874,1723663859741,-500.0,0.00016438,2]
[334942875,1723663859751,-500.0,0.00016438,2]
[334942876,1723663859760,-660.5,0.00016438,2]
[334942877,1723663859769,-4047.03,0.00016438,2]
[334942878,1723663859778,-500.0,0.00016438,2]
[334942879,1723663859788,-1193.38,0.00016438,2]
[334942880,1723663859796,-500.0,0.00016554,2]
[334942881,1723663859806,-500.0,0.00016562,2]
[334942882,1723663859815,-500.0,0.00016571,2]
[334942883,1723663859824,-500.0,0.0001658,2]
[334942884,1723663859835,-500.0,0.00016589,2]
[334942885,1723663859844,-500.0,0.00016598,2]
[334942886,1723663859853,-500.0,0.00016606,2]
[334942887,1723663859862,-500.0,0.00016615,2]
[334942888,1723663859871,-500.0,0.00016624,2]
[334942889,1723663859881,-500.0,0.00016633,2]
[334942890,1723663859889,-500.0,0.00016642,2]
[334942891,1723663859899,-500.0,0.0001665,2]
[334942892,1723663859907,-500.0,0.00016659,2]
[334942893,1723663859916,-500.0,0.00016668,2]
[334942894,1723663859926,-500.0,0.00016677,2]
[334942895,1723663859935,-500.0,0.00016677,2]
[334942896,1723663859944,-500.0,0.00016686,2]
[334942897,1723663859953,-500.0,0.00016686,2]
[334942898,1723663859962,-500.0,0.00016686,2]
[334942899,1723663859971,-500.0,0.00016694,2]
[334942900,1723663859980,-500.0,0.00016694,2]
[334942901,1723663859989,-500.0,0.00016694,2]
[334942902,1723663859999,-2000.0,0.000167,2]
[334942903,1723663860008,-500.0,0.00016703,2]
[334942904,1723663860017,-500.0,0.00016703,2]
[334942905,1723663860026,-500.0,0.00016703,2]
[334942906,1723663860035,-500.0,0.00016712,2]
[334942907,1723663860044,-500.0,0.00016712,2]
[334942908,1723663860054,-500.0,0.00016712,2]
[334942909,1723663860063,-3718.96,0.00016712,2]
[334942910,1723663860073,-500.0,0.00016712,2]
[334942911,1723663860082,-500.0,0.00016712,2]
[334942912,1723663860092,-500.0,0.00016712,2]
[334942913,1723663860101,-3747.06,0.00016712,2]
[334942914,1723663860109,-1508.3,0.00016712,2]
[334942915,1723663860118,-1473.45,0.00016712,2]
[334942916,1723663860128,-500.0,0.00016712,2]
[334942917,1723663860139,-500.0,0.00016712,2]
[334942918,1723663860148,-2295.24,0.00016712,2]
[334942919,1723663860157,-757.01,0.00016712,2]
[334942920,1723663860167,-1680.08,0.00016712,2]
[334942921,1723663860176,-685.4,0.00016712,2]
[334942922,1723663860185,-500.0,0.00016712,2]
[334942923,1723663860195,-811.57,0.00016712,2]
[334942924,1723663860301,-500.0,0.00016712,2]
[334942925,1723663860311,-500.0,0.00016712,2]
[334942926,1723663860320,-660.5,0.00016712,2]
[334942927,1723663860329,-4047.03,0.00016712,2]
[334942928,1723663860339,-500.0,0.00016712,2]
[334942929,1723663860348,-1193.38,0.00016712,2]
[334942930,1723663860358,-186.44,0.00016712,2]
[334942931,1723663860367,-313.33566867,0.00016754,2]
[334942932,1723663860376,-1542.0,0.00016889,2]
[334942933,1723663860391,-1257.0,0.00016889,2]
[334942934,1723663860401,-622.0,0.00016889,2]
[334942935,1723663860411,-1924.0,0.00016889,2]
[334942936,1723663860421,-7707.56018791,0.00016944,2]
[334942937,1723663860430,-3718.96,0.00016986,2]
[334942938,1723663860440,-231.0,0.00016986,2]
[334942939,1723663860450,-500.0,0.00016986,2]
[334942940,1723663860459,-500.0,0.00016986,2]
[334942941,1723663860468,-3747.06,0.00016986,2]
[334942942,1723663860477,-1508.3,0.00016986,2]
[334942943,1723663860486,-1473.45,0.00016986,2]
[334942944,1723663860498,-500.0,0.00016986,2]
[334942945,1723663860509,-500.0,0.00016986,2]
[334942946,1723663860518,-2295.24,0.00016986,2]
[334942947,1723663860531,-757.01,0.00016986,2]
[334942948,1723663860540,-1680.08,0.00016986,2]
[334942949,1723663860550,-685.4,0.00016986,2]
[334942950,1723663860559,-500.0,0.00016986,2]
[334942951,1723663860570,-811.57,0.00016986,2]
[334942952,1723663860581,-500.0,0.00016986,2]
[334942953,1723663860591,-500.0,0.00016986,2]
[334942954,1723663860601,-660.5,0.00016986,2]
[334942955,1723663860613,-4047.03,0.00016986,2]
[334942956,1723663860624,-500.0,0.00016986,2]
[334942957,1723663860635,-1193.38,0.00016986,2]
[334942958,1723663860644,-150.0,0.00016989,2]
[334942959,1723663860652,-1137.0,0.00017,2]
[334942960,1723663860661,-786.801,0.00017,2]
[334942961,1723663860672,-764.0,0.00017,2]
[334942962,1723663860682,-400.0,0.00017046,2]
[334942963,1723663860692,-1613.0,0.00017191,2]
[334942964,1723663860703,-177.06,0.00017238,2]
[334942965,1723663860712,-3718.96,0.0001726,2]
[334942966,1723663860723,-500.0,0.0001726,2]
[334942967,1723663860733,-500.0,0.0001726,2]
[334942968,1723663860744,-3747.06,0.0001726,2]
[334942969,1723663860754,-1508.3,0.0001726,2]
[334942970,1723663860766,-1473.45,0.0001726,2]
[334942971,1723663860776,-500.0,0.0001726,2]
[334942972,1723663860787,-500.0,0.0001726,2]
[334942973,1723663860798,-2295.24,0.0001726,2]
[334942974,1723663860808,-757.01,0.0001726,2]
[334942975,1723663860818,-1680.08,0.0001726,2]
[334942976,1723663860827,-685.4,0.0001726,2]
[334942977,1723663860837,-500.0,0.0001726,2]
[334942978,1723663860847,-811.57,0.0001726,2]
[334942979,1723663860856,-500.0,0.0001726,2]
[334942980,1723663860865,-500.0,0.0001726,2]
[334942981,1723663860875,-660.5,0.0001726,2]
[334942982,1723663860889,-4047.03,0.0001726,2]
[334942983,1723663860899,-500.0,0.0001726,2]
[334942984,1723663860908,-1193.38,0.0001726,2]
[334942985,1723663860919,-1153.0,0.000173,3]
[334942986,1723663860928,-842.02,0.00017342,2]
[334942987,1723663860938,-4692.0,0.000174,3]
[334942988,1723663860947,-527.0,0.000174,7]
[334942989,1723663860956,-3718.96,0.00017534,2]
[334942990,1723663860966,-500.0,0.00017534,2]
[334942991,1723663860976,-500.0,0.00017534,2]
[334942992,1723663860985,-3747.06,0.00017534,2]
[334942993,1723663860994,-1508.3,0.00017534,2]
[334942994,1723663861003,-1473.45,0.00017534,2]
[334942995,1723663861013,-500.0,0.00017534,2]
[334942996,1723663861022,-243.89200594,0.00017534,2]
[334942997,1723663861031,-2295.24,0.00017534,2]
[334942998,1723663861041,-757.01,0.00017534,2]
[334942999,1723663861051,-1680.08,0.00017534,2]
[334943000,1723663861060,-685.4,0.00017534,2]
[334943001,1723663861069,-500.0,0.00017534,2]
[334943002,1723663861078,-811.57,0.00017534,2]
[334943003,1723663861088,-500.0,0.00017534,2]
[334943004,1723663861098,-429.08,0.00017534,2]
[334943005,1723663861107,-660.5,0.00017534,2]
[334943006,1723663861117,-4047.03,0.00017534,2]
[334943007,1723663861127,-500.0,0.00017534,2]
[334943008,1723663861144,-1193.38,0.00017534,2]
[334943009,1723663861153,-356.58,0.00017616,2]
[334943010,1723663861163,-166.8038496,0.0001765,2]
[334943011,1723663861172,-2000.0,0.000177,2]
[334943012,1723663861181,-3718.96,0.00017808,2]
[334943013,1723663861190,-500.0,0.00017808,2]
[334943014,1723663861199,-635.29,0.00017808,2]
[334943015,1723663861208,-3747.06,0.00017808,2]
[334943016,1723663861218,-1508.3,0.00017808,2]
[334943017,1723663861227,-1473.45,0.00017808,2]
[334943018,1723663861236,-500.0,0.00017808,2]
[334943019,1723663861245,-2295.24,0.00017808,2]
[334943020,1723663861255,-757.01,0.00017808,2]
[334943021,1723663861264,-1680.08,0.00017808,2]
[334943022,1723663861274,-685.4,0.00017808,2]
[334943023,1723663861284,-500.0,0.00017808,2]
[334943024,1723663861295,-811.57,0.00017808,2]
[334943025,1723663861305,-500.0,0.00017808,2]
[334943026,1723663861315,-660.5,0.00017808,2]
[334943027,1723663861325,-4047.03,0.00017808,2]
[334943028,1723663861335,-500.0,0.00017808,2]
[334943029,1723663861345,-1193.38,0.00017808,2]
[334943030,1723663861355,-1468.9913743,0.00018,9]
[334943031,1723663861364,-750.0,0.00018,2]
[334943032,1723663861374,-2058.08405941,0.00018079,2]
[334943033,1723663861387,-3718.96,0.00018082,2]
[334943034,1723663861397,-549.82,0.00018082,2]
[334943035,1723663861406,-3747.06,0.00018082,2]
[334943036,1723663861415,-1508.3,0.00018082,2]
[334943037,1723663861424,-1473.45,0.00018082,2]
[334943038,1723663861434,-500.0,0.00018082,2]
[334943039,1723663861443,-2295.24,0.00018082,2]
[334943040,1723663861453,-757.01,0.00018082,2]
[334943041,1723663861463,-1680.08,0.00018082,2]
[334943042,1723663861472,-685.4,0.00018082,2]
[334943043,1723663861482,-500.0,0.00018082,2]
[334943044,1723663861491,-811.57,0.00018082,2]
[334943045,1723663861501,-500.0,0.00018082,2]
[334943046,1723663861510,-660.5,0.00018082,2]
[334943047,1723663861520,-4047.03,0.00018082,2]
[334943048,1723663861533,-500.0,0.00018082,2]
[334943049,1723663861543,-1193.38,0.00018082,2]
[334943050,1723663861552,-1087.86498854,0.000181,2]
[334943051,1723663861562,-3718.96,0.00018356,2]
[334943052,1723663861572,-3747.06,0.00018356,2]
[334943053,1723663861581,-1508.3,0.00018356,2]
[334943054,1723663861590,-1473.45,0.00018356,2]
[334943055,1723663861600,-500.0,0.00018356,2]
[334943056,1723663861610,-2295.24,0.00018356,2]
[334943057,1723663861620,-757.01,0.00018356,2]
[334943058,1723663861633,-1680.08,0.00018356,2]
[334943059,1723663861643,-685.4,0.00018356,2]
[334943060,1723663861652,-500.0,0.00018356,2]
[334943061,1723663861661,-811.57,0.00018356,2]
[334943062,1723663861670,-500.0,0.00018356,2]
[334943063,1723663861680,-660.5,0.00018356,2]
[334943064,1723663861690,-4047.03,0.00018356,2]
[334943065,1723663861699,-500.0,0.00018356,2]
[334943066,1723663861708,-1193.38,0.00018356,2]
[334943067,1723663861718,-7707.56018791,0.00018456,2]
[334943068,1723663861727,-2533.93722692,0.000186,2]
[334943069,1723663861736,-3718.96,0.0001863,2]
[334943070,1723663861746,-3747.06,0.0001863,2]
[334943071,1723663861756,-1508.3,0.0001863,2]
[334943072,1723663861767,-1473.45,0.0001863,2]
[334943073,1723663861776,-196.9,0.0001863,2]
[334943074,1723663861786,-2295.24,0.0001863,2]
[334943075,1723663861796,-757.01,0.0001863,2]
[334943076,1723663861806,-1680.08,0.0001863,2]
[334943077,1723663861816,-685.4,0.0001863,2]
[334943078,1723663861825,-500.0,0.0001863,2]
[334943079,1723663861835,-811.57,0.0001863,2]
[334943080,1723663861845,-500.0,0.0001863,2]
[334943081,1723663861855,-660.5,0.0001863,2]
[334943082,1723663861865,-4047.03,0.0001863,2]
[334943083,1723663861875,-429.28,0.0001863,2]
[334943084,1723663861891,-1193.38,0.0001863,2]
[334943085,1723663861900,-2000.0,0.000187,2]
[334943086,1723663861911,-313.33566867,0.00018706,2]
[334943087,1723663861921,-271.21586941,0.00018877,2]